bitfinex-derivatives/quotes_ETHF0:USTF0_20241018
["timestamp","ask_amount","ask_price","bid_price","bid_amount"]
[1729279602627,4.60484467,2661.2,2661.1,1.72572]
[1729279603737,4.60484467,2661.2,2661.0,0.4443]
[1729279603738,4.22913467,2661.2,2661.0,1.7943]
[1729279603927,1.72572,2661.1,2661.0,0.82004]
[1729279605831,3.68166533,2661.1,2661.0,0.82004]
[1729279606034,1.72572,2661.1,2661.0,0.82004]
[1729279606534,1.72572,2661.1,2661.0,2.17004]
[1729279606938,1.35,2661.1,2661.0,2.17004]
[1729279607137,2.33276267,2661.1,2661.0,2.17004]
[1729279607339,1.95704267,2661.1,2661.0,2.17004]
[1729279612535,1.95704267,2661.1,2661.0,0.4443]
[1729279612536,3.68276267,2661.1,2661.0,0.4443]
[1729279612733,0.37575,2660.9,2660.8,3.58356]
[1729279612938,3.79799032,2660.9,2660.8,3.58356]
[1729279613145,2.82374032,2660.9,2660.8,4.93356]
[1729279613438,0.37575,2660.9,2660.8,4.93356]
[1729279613646,2.82374032,2661.0,2660.9,0.37575]
[1729279614042,3.29643999,2661.0,2660.9,0.37575]
[1729279614545,0.37575,2661.0,2660.9,0.37575]
[1729279614846,5.1084,2661.0,2660.8,3.2078]
[1729279615037,4.66212197,2660.9,2660.8,3.58355]
[1729279615344,4.66212197,2660.9,2660.8,4.03875]
[1729279615546,3.31212197,2660.9,2660.8,5.81215]
[1729279615846,0.37575,2660.9,2660.8,5.81215]
[1729279620139,0.37575,2660.9,2660.8,2.60435]
[1729279620351,1.72575,2660.9,2660.8,0.83095]
[1729279621142,4.66212197,2660.9,2660.8,0.37575]
[1729279622050,4.17117286,2660.9,2660.8,0.37575]
[1729279623451,1.72575,2660.9,2660.8,0.37575]
[1729279623666,2.44542286,2661.0,2660.9,0.37575]
[1729279623850,1.95584689,2661.0,2660.9,1.72575]
[1729279624045,0.37573,2661.1,2661.0,0.37574]
[1729279624046,2.33157689,2661.1,2661.0,0.37574]
[1729279624350,1.95584689,2661.1,2661.0,2.59974]
[1729279624743,2.33156689,2661.1,2661.0,2.59974]
[1729279624948,3.30584689,2661.1,2661.0,2.59974]
[1729279626746,3.68156689,2661.1,2661.0,2.59974]
[1729279627755,3.30584689,2661.1,2661.0,2.59974]
[1729279627952,3.68156689,2661.1,2661.0,2.59974]
[1729279628950,1.72572,2661.1,2661.0,2.59974]
[1729279630153,1.72572,2661.1,2661.0,0.80524]
[1729279630449,1.72572,2661.1,2661.0,2.15524]
[1729279631246,4.66209197,2661.1,2661.0,2.15524]
[1729279632056,1.72572,2661.1,2661.0,2.15524]
[1729279632857,2.93637197,2661.2,2661.0,1.7795]
[1729279633055,2.93637197,2661.2,2661.1,1.72572]
[1729279633254,4.66207197,2661.3,2661.2,0.37571]
[1729279633554,4.66207197,2661.3,2661.2,0.76871]
[1729279633757,1.7257,2661.3,2661.2,0.76871]
[1729279634655,2.93637197,2661.4,2661.3,0.37569]
[1729279634953,4.5578,2661.6,2661.3,1.35]
[1729279634954,6.14417197,2661.6,2661.3,1.35]
[1729279635154,6.51982197,2661.6,2661.5,1.72567]
[1729279635553,3.58345,2661.6,2661.5,2.11817]
[1729279636249,3.2078,2661.6,2661.5,2.11817]
[1729279636663,4.5578,2661.6,2661.5,0.76817]
[1729279636848,9.6654,2661.6,2661.2,3.6008]
[1729279637050,3.30575274,2661.3,2661.0,0.7954]
[1729279637253,3.38400245,2661.5,2661.0,0.7954]
[1729279637254,1.72572,2661.1,2661.0,2.52112]
[1729279637764,1.95575274,2661.1,2661.0,2.52112]
[1729279638062,2.33147274,2661.1,2661.0,2.52112]
[1729279639860,3.68147274,2661.1,2661.0,0.7954]
[1729279640157,1.72573,2661.1,2660.9,3.58355]
[1729279640354,2.35951452,2661.0,2660.9,4.93355]
[1729279643760,1.95581452,2661.0,2660.9,4.93355]
[1729279643958,1.95581452,2661.1,2660.9,8.3162]
[1729279644156,2.44481245,2661.1,2661.0,1.35]
[1729279644357,2.44481245,2661.2,2661.1,0.37572]
[1729279644554,2.44481245,2661.2,2661.1,2.12412]
[1729279644759,2.44481245,2661.2,2661.1,5.88172]
[1729279645856,0.838,2661.6,2661.5,0.37567]
[1729279646055,2.56365,2661.6,2661.3,1.35]
[1729279646355,2.56365,2661.6,2661.2,0.4046]
[1729279646356,1.35,2661.4,2661.2,0.4046]
[1729279646563,1.35,2661.3,2661.2,2.13031]
[1729279647367,1.21365,2661.6,2661.5,0.37567]
[1729279647562,2.56365,2661.6,2661.5,1.72567]
[1729279648571,2.56365,2661.6,2661.5,0.37567]
[1729279651155,2.188,2661.6,2661.4,1.35]
[1729279651358,2.188,2661.6,2661.5,0.37567]
[1729279651359,1.21366,2661.6,2661.5,0.37567]
[1729279652371,2.56366,2661.6,2661.5,0.37567]
[1729279652566,5.00807617,2661.6,2661.5,0.37567]
[1729279652764,4.63241617,2661.6,2661.5,0.37567]
[1729279652966,5.00806617,2661.6,2661.5,0.37567]
[1729279654576,4.63241617,2661.6,2661.5,0.37567]
[1729279654771,5.00806617,2661.6,2661.5,1.72567]
[1729279657664,2.56365,2661.6,2661.5,1.72567]
[1729279658261,2.79280333,2661.6,2661.5,1.72567]
[1729279658466,1.95480333,2661.6,2661.5,1.72567]
[1729279659066,4.6589494,2661.7,2661.6,0.37565]
[1729279659278,4.6589494,2661.7,2661.6,1.72565]
[1729279659279,2.9332994,2661.7,2661.6,1.72565]
[1729279659482,1.35,2661.7,2661.6,1.7806]
[1729279659773,1.35,2661.7,2661.6,2.15625]
[1729279661783,1.72564,2661.7,2661.6,2.15625]
[1729279663681,1.35,2661.7,2661.6,2.15625]
[1729279663982,1.72564,2661.7,2661.6,0.80625]
[1729279664178,1.35,2661.7,2661.6,0.80625]
[1729279664484,1.72564,2661.7,2661.6,0.80625]
[1729279665271,1.35,2661.7,2661.6,0.80625]
[1729279665482,1.72564,2661.7,2661.6,0.80625]
[1729279665968,1.72564,2661.7,2661.6,0.37565]
[1729279666482,4.6589394,2661.7,2661.6,0.37565]
[1729279666970,1.72564,2661.7,2661.6,0.37565]
[1729279667683,0.37567,2661.5,2661.4,0.78586]
[1729279667883,0.37567,2661.5,2661.4,2.13586]
[1729279668383,1.84133691,2661.5,2661.4,2.13586]
[1729279668692,0.37567,2661.5,2661.4,2.13586]
[1729279669272,3.67987749,2661.6,2661.5,0.37567]
[1729279669471,3.67987749,2661.6,2661.5,1.72567]
[1729279672380,1.72567,2661.6,2661.5,1.72567]
[1729279672681,3.68055855,2661.6,2661.5,1.72567]
[1729279673475,2.44257568,2661.7,2661.5,1.35]
[1729279673777,3.6802657,2661.6,2661.5,1.72565]
[1729279678379,3.6802657,2661.6,2661.5,0.37565]
[1729279680183,0.37567,2661.5,2661.4,0.78587]
[1729279680389,4.94731466,2661.5,2661.4,0.78587]
[1729279681289,2.99247,2661.5,2661.4,0.78587]
[1729279681982,2.99247,2661.5,2661.4,0.4102]
[1729279682187,5.9257694,2661.5,2661.4,0.78588]
[1729279682386,5.0827694,2661.5,2661.4,0.78588]
[1729279688398,2.14947,2661.5,2661.4,0.78588]
[1729279689297,4.59499609,2661.5,2661.4,0.78588]
[1729279689599,2.14947,2661.5,2661.4,0.78588]
[1729279690996,3.35863131,2661.8,2661.4,2.13588]
[1729279691220,0.37565,2661.7,2661.6,0.37564]
[1729279691394,1.72565,2661.7,2661.6,0.37564]
[1729279691697,0.424,2661.8,2661.7,0.37564]
[1729279691698,2.14963,2661.8,2661.7,0.37564]
[1729279692990,6.14243131,2661.9,2661.8,0.37562]
[1729279692991,4.93342,2661.9,2661.8,0.37562]
[1729279693187,2.93463131,2662.0,2661.9,0.37561]
[1729279693401,1.35,2662.0,2661.9,2.12811]
[1729279693699,1.35,2662.0,2661.9,0.77811]
[1729279693700,1.7256,2662.0,2661.9,0.77811]
[1729279694006,1.7256,2662.0,2661.9,0.37561]
[1729279694300,2.44638204,2662.1,2661.9,3.7568]
[1729279694499,1.46799984,2662.1,2662.0,1.8224508]
[1729279694692,1.46799984,2662.1,2662.0,1.2135]
[1729279694889,3.79638204,2662.3,2662.1,0.37558]
[1729279695096,3.79638204,2662.2,2662.1,0.37558]
[1729279695299,1.35,2662.2,2662.1,0.37558]
[1729279695502,3.79638204,2662.2,2662.1,0.37558]
[1729279695703,2.44638204,2662.2,2662.1,1.72558]
[1729279695908,3.79638204,2662.3,2662.1,1.35]
[1729279696099,3.79638204,2662.3,2662.2,0.37557]
[1729279696606,3.79638204,2662.3,2662.2,1.72557]
[1729279697203,4.17193204,2662.3,2662.2,1.72557]
[1729279697402,3.79638204,2662.3,2662.0,0.8379]
[1729279697603,3.79638204,2662.1,2662.0,0.37559]
[1729279697793,4.98986204,2662.2,2662.0,1.35]
[1729279697996,0.8179,2662.2,2662.1,1.72558]
[1729279698206,3.63595125,2662.2,2662.1,1.72558]
[1729279698408,4.05005125,2662.2,2662.1,1.72558]
[1729279698808,3.25308125,2662.2,2662.1,1.35]
[1729279699011,4.60308125,2662.2,2662.1,1.72558]
[1729279701512,2.1606,2662.2,2662.1,1.72558]
[1729279703119,2.53617,2662.2,2662.1,1.72558]
[1729279703310,2.1606,2662.2,2662.1,1.72558]
[1729279703816,2.53617,2662.2,2662.1,1.72558]
[1729279704213,5.95835264,2662.2,2662.1,1.72558]
[1729279706319,5.95835264,2662.2,2662.1,1.35]
[1729279706514,5.58278264,2662.2,2662.0,1.35]
[1729279706715,4.65345724,2662.1,2662.0,1.35]
[1729279706917,11.24247724,2662.1,2661.2,3.2078]
[1729279707217,2.43963798,2661.5,2661.4,0.37568]
[1729279707619,2.43963798,2661.5,2661.4,4.13328]
[1729279707918,2.43963798,2661.6,2661.4,3.7576]
[1729279708118,3.42218264,2662.0,2661.6,0.37565]
[1729279708119,2.43963798,2661.7,2661.6,0.37565]
[1729279708319,2.43963798,2661.7,2661.6,2.57295]
[1729279708511,2.43963798,2661.8,2661.7,0.37564]
[1729279708711,2.43963798,2661.8,2661.7,2.14354]
[1729279708909,2.43963798,2661.8,2661.7,5.90034]
[1729279711314,0.97529759,2661.9,2661.8,0.37562]
[1729279711520,0.97529759,2661.9,2661.8,1.72562]
[1729279711716,0.97529759,2661.9,2661.8,5.48242]
[1729279712224,0.97529759,2662.0,2661.9,0.37561]
[1729279712420,0.97529759,2662.0,2661.9,1.72561]
[1729279719418,0.37558,2662.1,2662.0,0.3756]
[1729279719821,0.37558,2662.1,2662.0,0.7973]
[1729279720918,3.30321368,2662.3,2662.2,0.37557]
[1729279721125,4.13919368,2662.4,2662.3,0.37555]
[1729279721327,4.13919368,2662.4,2662.3,1.72555]
[1729279724024,4.13919368,2662.4,2662.3,0.37555]
[1729279724740,0.37555,2662.3,2662.2,1.72556]
[1729279724927,0.37555,2662.3,2662.2,0.37556]
[1729279726434,2.32753868,2662.3,2662.2,0.37556]
[1729279727735,3.67753868,2662.3,2662.2,0.37556]
[1729279727941,4.08373868,2662.3,2662.2,0.37556]
[1729279728444,0.37558,2662.2,2662.1,0.37557]
[1729279728642,0.37558,2662.2,2661.8,0.37561]
[1729279728643,0.37562,2661.9,2661.8,0.37561]
[1729279728850,0.37562,2661.8,2661.7,0.37563]
[1729279729156,2.97122,2661.8,2661.7,0.37563]
[1729279729353,5.41120585,2661.8,2661.7,0.37563]
[1729279729551,5.41120585,2661.8,2661.7,1.72563]
[1729279729748,0.37567,2661.6,2661.5,0.37565]
[1729279729947,3.30110389,2661.6,2661.3,3.2078]
[1729279730148,1.72568,2661.4,2661.3,3.2078]
[1729279730452,1.72568,2661.4,2661.3,3.58349]
[1729279730656,4.16566585,2661.4,2661.3,3.58349]
[1729279730853,2.83998585,2661.4,2661.3,4.93349]
[1729279731056,1.95074738,2661.4,2661.3,8.69109]
[1729279731255,1.46341647,2661.6,2661.3,8.3154]
[1729279731448,1.46341647,2661.6,2661.5,1.72567]
[1729279732744,1.46341647,2661.6,2661.5,2.12097]
[1729279733057,1.95074738,2661.7,2661.6,0.37565]
[1729279733358,1.95074738,2661.7,2661.6,1.72565]
[1729279733556,1.95074738,2661.8,2661.7,0.37564]
[1729279733755,1.95074738,2661.8,2661.7,1.72564]
[1729279734558,3.21559585,2661.9,2661.8,0.37562]
[1729279734559,5.05325368,2661.9,2661.8,0.37562]
[1729279734747,2.12561,2661.9,2661.8,0.37562]
[1729279734949,5.05325368,2661.9,2661.8,0.77482]
[1729279735262,5.05325368,2661.9,2661.8,2.12482]
[1729279735851,0.37562,2661.8,2661.7,1.72563]
[1729279736052,1.72562,2661.8,2661.7,1.72563]
[1729279736453,4.65326368,2661.8,2661.7,0.37563]
[1729279736859,1.72562,2661.8,2661.7,0.37563]
[1729279737049,1.72562,2661.8,2661.7,1.72563]
[1729279737449,4.65326368,2661.8,2661.7,1.72563]
[1729279737850,1.72562,2661.8,2661.7,1.72563]
[1729279741760,4.16746948,2661.8,2661.7,1.72563]
[1729279742162,1.72562,2661.8,2661.7,1.72563]
[1729279742860,4.56746948,2661.9,2661.8,0.37562]
[1729279745451,4.56746948,2661.9,2661.7,1.7423]
[1729279745452,0.37562,2661.8,2661.7,2.11793]
[1729279745662,1.72562,2661.8,2661.7,0.37563]
[1729279747064,4.16746948,2661.8,2661.7,0.37563]
[1729279747261,3.79184948,2661.8,2661.4,0.4123]
[1729279747568,0.37569,2661.4,2661.3,0.37568]
[1729279747755,2.32796227,2661.4,2661.3,0.77398]
[1729279747955,2.32796227,2661.4,2661.3,2.12398]
[1729279749166,2.32796227,2661.4,2661.3,1.7483]
[1729279749554,1.72569,2661.4,2661.3,0.3983]
[1729279749768,2.12219,2661.4,2661.3,0.3983]
[1729279750355,2.12219,2661.4,2661.2,4.9751]
[1729279750356,0.37569,2661.3,2661.2,3.2078]
[1729279750561,0.37572,2661.1,2661.0,0.7956]
[1729279750768,0.37574,2661.0,2660.9,4.169]
[1729279750964,0.37574,2661.0,2660.7,1.35]
[1729279750965,4.69984368,2661.0,2660.7,1.35]
[1729279751155,1.72577,2660.8,2660.7,1.35]
[1729279752168,4.16176116,2660.8,2660.7,1.35]
[1729279754676,4.16179116,2660.8,2660.7,1.35]
[1729279755964,1.7258,2660.8,2660.7,1.35]
[1729279756362,1.35,2660.8,2660.6,1.7421]
[1729279756558,2.84439116,2660.9,2660.6,1.7421]
[1729279756559,1.72582,2660.7,2660.6,1.7421]
[1729279757064,1.72582,2660.7,2660.6,0.3921]
[1729279757666,1.35,2660.7,2660.4,1.35]
[1729279757873,1.72585,2660.5,2660.4,1.7461]
[1729279758571,1.72585,2660.5,2660.4,2.12196]
[1729279758964,1.72585,2660.5,2660.4,1.7461]
[1729279759170,1.72585,2660.5,2660.4,2.12196]
[1729279764272,0.37582,2660.8,2660.6,0.37583]
[1729279764579,1.72582,2660.8,2660.7,1.72582]
[1729279767471,0.3758,2660.9,2660.8,0.37579]
[1729279767674,0.3758,2660.9,2660.8,2.11599]
[1729279768479,1.7258,2660.9,2660.8,2.11599]
[1729279768980,1.7258,2660.9,2660.4,4.14745]
[1729279768981,1.35,2660.9,2660.4,3.2078]
[1729279769170,0.37583,2660.6,2660.5,0.4083]
[1729279769479,0.37583,2660.6,2660.0,3.58371]
[1729279769480,0.37586,2660.4,2660.0,3.2078]
[1729279769675,0.37589,2660.2,2660.1,0.4083]
[1729279769876,0.37589,2660.2,2659.8,0.7938]
[1729279769877,0.37593,2659.9,2659.8,0.7938]
[1729279770073,1.72593,2659.9,2659.8,1.2021]
[1729279770275,1.72593,2659.9,2659.8,0.7964]
[1729279771082,1.72593,2659.9,2659.8,0.4083]
[1729279773989,1.35,2659.9,2659.4,1.35]
[1729279774280,1.35,2659.9,2659.2,0.8185]
[1729279774281,0.37601,2659.3,2659.2,0.8185]
[1729279774684,3.58381,2659.3,2659.2,0.8185]
[1729279774993,4.93381,2659.3,2659.2,0.8185]
[1729279775281,4.93381,2659.3,2659.2,0.4268]
[1729279776387,4.5578,2659.3,2658.8,0.3917]
[1729279776686,0.37604,2659.2,2659.0,0.37605]
[1729279778583,6.1378,2659.3,2658.9,0.3971]
[1729279778779,6.51383,2659.3,2659.0,0.37606]
[1729279778981,0.37603,2659.2,2659.0,0.37606]
[1729279779180,6.1378,2659.3,2658.9,0.3971]
[1729279779381,6.51382,2659.3,2659.1,0.37604]
[1729279779587,6.1378,2659.3,2658.9,0.3971]
[1729279779788,6.1378,2659.3,2659.2,0.37603]
[1729279780186,6.51381,2659.3,2659.2,0.37603]
[1729279780390,6.1378,2659.3,2659.2,0.37603]
[1729279782796,6.51381,2659.3,2659.2,0.37603]
[1729279782995,3.2078,2659.3,2659.2,0.37603]
[1729279783389,3.2078,2659.7,2659.5,0.37598]
[1729279783595,3.58377,2659.7,2659.6,0.37597]
[1729279784193,0.37598,2659.6,2659.5,0.37597]
[1729279785193,3.2078,2659.7,2659.3,0.8341]
[1729279785491,0.37598,2659.6,2659.5,0.37598]
[1729279787194,3.2078,2659.7,2659.3,0.8341]
[1729279787393,3.58377,2659.7,2659.6,0.37597]
[1729279787897,3.2078,2659.7,2659.6,0.37597]
[1729279788083,3.58376,2659.7,2659.6,0.37597]
[1729279788291,3.2078,2659.7,2659.6,0.37597]
[1729279788994,3.58376,2659.7,2659.6,0.37597]
[1729279789588,3.2078,2659.7,2659.6,0.37597]
[1729279790982,3.58376,2659.7,2659.6,0.37597]
[1729279791794,3.2078,2659.7,2659.6,0.37597]
[1729279792397,3.58376,2659.7,2659.6,0.37597]
[1729279792693,3.2078,2659.7,2659.6,0.37597]
[1729279793898,3.58376,2659.7,2659.6,0.37597]
[1729279794099,3.2078,2659.7,2659.6,0.37597]
[1729279794802,6.91135,2659.8,2659.7,0.37596]
[1729279797902,5.33135,2659.8,2659.7,0.37596]
[1729279800603,5.33134,2659.8,2659.7,0.37596]
[1729279801904,3.98134,2659.8,2659.7,0.37596]
[1729279802094,5.33134,2659.8,2659.7,0.37596]
[1729279802296,4.9554,2659.8,2659.3,0.8341]
[1729279802599,1.35,2659.4,2659.2,0.37602]
[1729279802799,4.57848662,2659.8,2659.1,0.37603]
[1729279802800,0.37603,2659.2,2659.1,0.37603]
[1729279803004,1.72603,2659.2,2659.1,0.37603]
[1729279803415,1.35,2659.2,2659.1,0.37603]
[1729279804204,1.72603,2659.2,2659.1,0.37603]
[1729279805009,1.35,2659.2,2659.1,0.37603]
[1729279805210,1.72603,2659.2,2659.1,0.37603]
[1729279805814,1.59762,2659.3,2659.2,0.37603]
[1729279806108,2.5716,2659.3,2659.2,0.37603]
[1729279806415,1.7493,2659.3,2659.2,0.37603]
[1729279806704,1.35,2659.3,2659.2,4.13683]
[1729279806905,1.76728662,2659.6,2659.3,0.37601]
[1729279806906,1.35,2659.4,2659.3,0.37601]
[1729279807109,0.97308662,2659.7,2659.4,1.316]
[1729279807302,1.35,2659.5,2659.4,0.376]
[1729279807706,1.35,2659.5,2659.4,4.136]
[1729279808713,1.35,2659.5,2659.4,5.486]
[1729279811009,0.7942,2659.9,2659.7,0.37596]
[1729279811205,3.2078,2660.1,2660.0,0.37592]
[1729279811405,4.5578,2660.1,2660.0,1.72592]
[1729279811804,3.2078,2660.1,2660.0,5.48512]
[1729279812514,1.38368662,2660.6,2660.0,5.48512]
[1729279812515,1.34890662,2660.7,2660.6,0.37583]
[1729279812705,1.72582,2660.7,2660.6,0.37583]
[1729279813010,1.35,2660.7,2660.6,0.37583]
[1729279813204,1.72582,2660.7,2660.6,0.37583]
[1729279813710,1.72582,2660.7,2660.3,2.28968]
[1729279813711,0.37583,2660.6,2660.5,0.37583]
[1729279813911,6.5399,2660.8,2660.2,0.9397]
[1729279814106,0.37582,2660.7,2660.6,0.37583]
[1729279814304,7.51298662,2660.8,2660.7,0.37582]
[1729279814500,3.6099,2660.8,2660.7,0.37582]
[1729279814703,1.38068662,2661.0,2660.9,0.37579]
[1729279815008,1.38068662,2661.0,2660.8,0.3758]
[1729279815009,0.37579,2660.9,2660.8,0.3758]
[1729279815417,5.08856662,2661.0,2660.8,0.3758]
[1729279815714,4.11548,2661.0,2660.9,0.37579]
[1729279816013,4.11548,2661.0,2660.8,0.3758]
[1729279816716,4.11548,2661.0,2660.6,0.3896]
[1729279816911,5.08856662,2661.0,2660.8,0.37579]
[1729279817113,0.37582,2660.7,2660.6,0.37583]
[1729279817509,6.1378,2660.8,2660.6,0.37583]
[1729279817510,6.5645,2660.8,2660.6,0.37583]
[1729279817714,6.94031,2660.8,2660.6,0.37583]
[1729279818411,0.37582,2660.7,2660.6,0.37583]
[1729279818915,6.5645,2660.8,2660.6,0.37583]
[1729279819118,6.94031,2660.8,2660.6,0.37583]
[1729279819710,6.94031,2660.8,2660.7,0.37582]
[1729279819711,3.6345,2660.8,2660.7,0.37582]
[1729279819906,3.2078,2660.8,2660.7,0.37582]
[1729279821511,3.2078,2660.8,2660.2,3.6329]
[1729279821512,6.1378,2660.8,2660.2,3.6329]
[1729279821720,0.4054,2660.7,2660.6,0.37582]
[1729279821913,0.78122,2660.7,2660.6,0.37582]
[1729279822114,3.2078,2660.8,2660.7,0.37582]
[1729279823223,3.3058,2660.9,2660.7,0.37582]
[1729279823519,3.3058,2660.9,2660.4,0.4227]
[1729279823520,6.1378,2660.9,2660.4,0.4227]
[1729279823718,0.37582,2660.7,2660.5,0.37584]
[1729279824113,1.38848662,2660.6,2660.5,0.37584]
[1729279824311,1.76431662,2660.6,2660.4,0.4227]
[1729279824620,0.37588,2660.3,2660.2,0.37588]
[1729279824817,4.30218662,2660.5,2660.3,0.37587]
[1729279824818,1.34894662,2660.4,2660.3,0.37587]
[1729279826126,1.34894662,2660.4,2660.0,0.4301]
[1729279826323,0.97308662,2660.4,2660.0,0.4301]
[1729279826620,1.34894662,2660.4,2660.3,0.37587]
[1729279826823,0.37586,2660.4,2660.3,0.37587]
[1729279827727,1.83548993,2660.4,2660.3,0.37587]
[1729279828015,1.45962993,2660.4,2660.3,0.37587]
[1729279828222,2.24832993,2660.5,2660.0,0.4301]
[1729279828422,0.96903196,2660.4,2660.0,0.4301]
[1729279828619,0.96903196,2660.4,2660.3,0.37587]
[1729279829423,0.96903196,2660.4,2660.3,0.79697]
[1729279830124,1.36813196,2660.5,2660.4,0.37586]
[1729279830325,0.96903196,2660.5,2660.4,0.37586]
[1729279830523,1.45962993,2660.8,2660.5,0.37585]
[1729279830826,5.15397324,2661.0,2660.9,0.37579]
[1729279830827,4.66742993,2661.0,2660.9,0.37579]
[1729279831019,0.4212,2661.2,2660.9,0.93948]
[1729279831323,0.4212,2661.2,2661.1,0.37576]
[1729279834123,0.79696,2661.2,2661.0,0.37577]
[1729279834527,0.4212,2661.2,2660.7,1.36704]
[1729279834828,0.37579,2660.9,2660.7,0.3758]
[1729279835028,3.30579,2660.9,2660.7,0.3758]
[1729279835818,3.30579,2660.9,2660.8,0.3758]
[1729279836519,3.30579,2660.9,2660.7,0.37581]
[1729279836927,3.30579,2660.9,2660.8,0.3758]
[1729279838330,2.93,2660.9,2660.8,0.3758]
[1729279839323,3.337,2660.9,2660.8,0.3758]
[1729279849539,4.79662993,2660.9,2660.8,0.3758]
[1729279851029,0.37582,2660.7,2660.6,0.4015]
[1729279851234,0.37584,2660.6,2660.4,0.37585]
[1729279851436,1.45512507,2660.5,2660.4,0.37585]
[1729279851740,1.94617324,2660.5,2660.4,0.37585]
[1729279851938,3.29617324,2660.5,2660.4,0.37585]
[1729279852338,1.35,2660.5,2660.4,0.37585]
[1729279852640,3.29617324,2660.5,2660.4,0.37585]
[1729279853944,1.94617324,2660.5,2660.4,0.37585]
[1729279854338,1.94617324,2660.5,2660.3,0.4275]
[1729279854339,5.18868943,2660.6,2660.5,0.37585]
[1729279854639,8.94708943,2660.6,2660.5,0.37585]
[1729279855639,7.48964,2660.6,2660.5,0.37585]
[1729279856241,3.73124,2660.6,2660.5,0.37585]
[1729279856548,5.67741324,2660.6,2660.5,0.37585]
[1729279859348,5.30157324,2660.6,2660.5,0.37585]
[1729279859649,5.67740324,2660.6,2660.5,0.37585]
[1729279860054,5.30157324,2660.6,2660.5,0.37585]
[1729279860242,3.3554,2660.6,2660.5,0.37585]
[1729279860449,5.67754962,2660.6,2660.5,0.37585]
[1729279860647,3.73123,2660.6,2660.5,0.37585]
[1729279861241,3.73123,2660.6,2660.3,0.4275]
[1729279861242,5.67750484,2660.6,2660.3,0.4275]
[1729279861545,0.3759,2660.2,2660.0,0.37591]
[1729279861745,4.38947551,2660.1,2660.0,0.37591]
[1729279861947,4.38945622,2660.1,2660.0,0.37591]
[1729279862145,2.93,2660.1,2660.0,0.37591]
[1729279862549,5.36211586,2660.1,2660.0,0.37591]
[1729279863543,2.43211586,2660.1,2660.0,0.37591]
[1729279863745,2.80800586,2660.2,2659.9,0.3938]
[1729279863941,1.94526253,2660.0,2659.9,0.76973]
[1729279864450,2.43211586,2660.1,2659.9,0.3938]
[1729279864645,2.3213084,2660.0,2659.9,0.76973]
[1729279864944,0.37592,2660.0,2659.9,0.76973]
[1729279865151,6.16042586,2660.1,2660.0,0.37592]
[1729279865956,5.16042586,2660.1,2660.0,0.37592]
[1729279867940,8.36822586,2660.1,2660.0,0.37592]
[1729279868453,6.93611,2660.1,2660.0,0.37592]
[1729279870947,0.37592,2660.0,2659.9,0.3938]
[1729279871259,0.37592,2660.0,2659.6,0.37597]
[1729279871260,0.37597,2659.7,2659.6,0.37597]
[1729279871456,0.37597,2659.6,2659.5,1.18647]
[1729279871656,2.93,2659.7,2659.5,0.8105]
[1729279871959,3.70587,2659.7,2659.6,0.37597]
[1729279873252,0.77586,2659.7,2659.6,0.37597]
[1729279876852,0.3999,2659.7,2659.6,0.37597]
[1729279877047,3.70586,2659.7,2659.6,0.37597]
[1729279877249,0.37601,2659.3,2659.2,0.80112]
[1729279877445,3.30601,2659.3,2659.2,1.20602]
[1729279877951,1.72601,2659.3,2659.2,1.20602]
[1729279878760,1.35,2659.3,2659.2,1.20602]
[1729279879050,1.72601,2659.3,2659.2,1.20602]
[1729279879955,0.37601,2659.3,2659.2,1.20602]
[1729279880455,0.37601,2659.4,2659.3,0.376]
[1729279881748,6.5314,2659.5,2659.2,0.83]
[1729279881956,0.37601,2659.3,2659.2,1.20602]
[1729279882455,0.37601,2659.3,2659.2,0.78092]
[1729279883259,0.37601,2659.3,2659.2,0.4049]
[1729279883460,0.37601,2659.3,2659.2,0.78093]
[1729279889263,0.80221,2659.3,2659.2,0.78093]
[1729279891261,0.37603,2659.2,2659.1,0.37603]
[1729279897865,3.7608,2659.2,2658.8,0.37608]
[1729279898054,0.37609,2658.8,2658.7,0.80559]
[1729279899465,3.58389,2658.8,2658.7,0.80559]
[1729279901762,4.93389,2658.8,2658.7,0.80559]
[1729279906569,2.19093,2659.1,2658.7,5.5403]
[1729279906570,1.35,2659.0,2658.7,5.5403]
[1729279906769,1.35,2658.8,2658.7,2.1556]
[1729279907166,1.35,2658.8,2658.7,5.9164]
[1729279908567,1.35,2658.9,2658.7,5.9164]
[1729279908763,3.2078,2659.1,2659.0,0.37606]
[1729279908969,4.5578,2659.1,2659.0,0.37606]
[1729279909556,4.5578,2659.1,2659.0,0.79906]
[1729279909760,4.5578,2659.1,2659.0,1.20166]
[1729279910560,4.5578,2659.1,2659.0,2.55166]
[1729279910762,3.2078,2659.4,2659.3,0.37601]
[1729279910963,1.45707579,2659.8,2659.4,1.7626]
[1729279911270,2.80707579,2659.5,2658.9,0.94019]
[1729279911572,2.80707579,2659.5,2659.2,0.423]
[1729279911573,0.37601,2659.4,2659.2,0.423]
[1729279911767,4.66487579,2659.6,2659.2,0.423]
[1729279911974,1.35,2659.3,2659.2,0.79903]
[1729279913269,4.66487579,2659.6,2659.2,5.5338]
[1729279913467,3.2078,2659.7,2659.5,1.35]
[1729279913768,1.35,2659.8,2659.7,0.37596]
[1729279913958,3.2078,2660.0,2659.6,0.8318]
[1729279914163,3.58372,2660.0,2659.9,0.37593]
[1729279914362,3.2078,2660.0,2659.7,0.4261]
[1729279914569,0.37594,2659.8,2659.7,0.80205]
[1729279914769,0.37594,2659.8,2659.7,0.4261]
[1729279914770,3.30594,2659.8,2659.7,0.4261]
[1729279915167,5.24870773,2659.8,2659.7,0.4261]